bitfinex/quotes_SOLUSD_20251009
["timestamp","ask_amount","ask_price","bid_price","bid_amount"]
[1760009651798,3.72667966,223.4,223.27,31.54]
[1760009651977,16.3876664,223.39,223.27,31.54]
[1760009652168,3.72667966,223.38,223.27,31.54]
[1760009652487,0.72,223.37,223.27,31.54]
[1760009652896,0.72,223.36,223.27,31.54]
[1760009653082,3.00667966,223.38,223.27,31.54]
[1760009653083,0.72,223.35,223.27,31.54]
[1760009653390,0.72,223.35,223.27,32.22]
[1760009653585,0.72,223.34,223.27,32.22]
[1760009654175,0.72,223.37,223.28,0.68]
[1760009654383,0.72,223.36,223.28,0.68]
[1760009655491,0.72,223.38,223.28,0.68]
[1760009656370,15.66906925,223.37,223.28,5.15867472]
[1760009656572,16.38906925,223.37,223.29,0.68]
[1760009658087,16.38906925,223.37,223.26,32.26]
[1760009658271,4.47687693,223.37,223.27,32.26]
[1760009658477,4.47687693,223.37,223.28,32.3]
[1760009658675,4.47687693,223.37,223.29,0.68]
[1760009659283,4.47661041,223.39,223.29,0.68]
[1760009659472,0.72,223.4,223.3,4.47828034]
[1760009659671,0.72,223.4,223.31,0.68]
[1760009660384,0.72,223.4,223.32,31.64]
[1760009660693,0.72,223.4,223.32,32.32]
[1760009661083,0.72,223.4,223.33,0.68]
[1760009661874,4.47647611,223.39,223.33,0.68]
[1760009663896,15.6676664,223.39,223.33,0.68]
[1760009664081,0.72,223.38,223.34,31.6]
[1760009665001,15.6676664,223.39,223.28,0.68]
[1760009665002,0.72,223.37,223.28,0.68]
[1760009665180,0.72,223.37,223.29,31.62]
[1760009665382,0.72,223.37,223.3,0.68]
[1760009666300,15.66977076,223.36,223.29,31.62]
[1760009666504,16.32977076,223.36,223.29,31.62]
[1760009666896,15.66977076,223.36,223.29,31.62]
[1760009667103,0.66,223.35,223.29,31.62]
[1760009667483,0.66,223.34,223.25,0.68]
[1760009667805,0.66,223.34,223.23,0.68]
[1760009668001,0.66,223.33,223.24,31.62]
[1760009668177,0.66,223.32,223.24,31.62]
[1760009668579,0.66,223.31,223.23,0.68]
[1760009668786,0.66,223.31,223.24,31.62]
[1760009668987,0.66,223.3,223.24,31.62]
[1760009669594,0.66,223.3,223.16,11.20243636]
[1760009669595,0.66,223.29,223.21,0.68]
[1760009669806,0.66,223.29,223.25,31.62]
[1760009670101,0.66,223.28,223.25,31.62]
[1760009670298,2.9954014,223.35,223.26,0.68]
[1760009670499,5.13747828,223.34,223.26,0.68]
[1760009671316,11.19439311,223.33,223.26,0.68]
[1760009671605,0.66,223.32,223.27,31.62]
[1760009671776,0.66,223.31,223.27,31.62]
[1760009671982,11.19439311,223.33,223.27,31.62]
[1760009671983,0.66,223.3,223.27,31.62]
[1760009672504,4.47848089,223.29,223.27,31.62]
[1760009672709,15.67468313,223.29,223.23,0.68]
[1760009672875,15.67468313,223.29,223.26,31.64]
[1760009673079,0.66,223.28,223.23,0.68]
[1760009673276,0.66,223.28,223.24,31.62]
[1760009674082,15.67468313,223.29,223.24,32.3]
[1760009674401,15.67468313,223.29,223.25,0.68]
[1760009674620,4.47848089,223.29,223.26,0.68]
[1760009674903,4.47848089,223.29,223.27,0.68]
[1760009675093,4.47848089,223.29,223.24,31.62]
[1760009675288,4.47819238,223.31,223.25,0.68]
[1760009675492,15.67339187,223.31,223.25,0.68]
[1760009676492,0.66,223.3,223.21,0.68]
[1760009676689,0.66,223.3,223.22,31.6]
[1760009676917,0.66,223.3,223.23,0.68]
[1760009678517,4.47848089,223.29,223.23,0.68]
[1760009678721,16.33468313,223.29,223.23,0.68]
[1760009678887,16.33468313,223.29,223.24,31.62]
[1760009679088,16.33468313,223.29,223.25,31.6]
[1760009679482,15.67468313,223.29,223.25,31.6]
[1760009679686,0.66,223.28,223.26,31.6]
[1760009680312,0.66,223.27,223.26,31.6]
[1760009680485,15.67468313,223.29,223.26,31.6]
[1760009680686,0.66,223.28,223.26,31.6]
[1760009681214,0.66,223.27,223.18,0.68]
[1760009681387,0.66,223.27,223.19,30.4]
[1760009681695,0.66,223.26,223.19,30.4]
[1760009682010,0.66,223.25,223.19,30.4]
[1760009682207,38.06708762,223.29,223.19,30.4]
[1760009682411,0.66,223.26,223.2,0.68]
[1760009682598,4.47928331,223.25,223.2,0.68]
[1760009682796,0.66,223.24,223.2,0.68]
[1760009683095,15.67749159,223.25,223.19,30.4]
[1760009683288,15.67749159,223.25,223.2,0.68]
[1760009683492,15.67749159,223.25,223.21,0.68]
[1760009683705,15.67749159,223.25,223.17,4.48084533]
[1760009684011,15.67749159,223.25,223.18,32.28]
[1760009684588,15.67749159,223.25,223.19,0.72]
[1760009685113,4.47928331,223.25,223.19,0.72]
[1760009691498,5.15928331,223.25,223.19,0.72]
[1760009692004,16.35749159,223.25,223.2,31.58]
[1760009692321,0.68,223.24,223.2,31.58]
[1760009694699,15.67608724,223.27,223.14,4.48146431]
[1760009695007,0.68,223.24,223.15,0.72]
[1760009695220,0.68,223.24,223.16,31.58]
[1760009695404,0.68,223.23,223.17,0.7]
[1760009696013,16.35749159,223.25,223.17,0.7]
[1760009696515,4.47928331,223.25,223.17,5.18085584]
[1760009696704,4.47928331,223.25,223.18,0.7]
[1760009697026,4.47909738,223.26,223.18,0.7]
[1760009698107,4.47888207,223.27,223.19,4.48048747]
[1760009698303,4.47888207,223.27,223.2,0.7]
[1760009699242,5.15888207,223.27,223.2,0.7]
[1760009700131,16.35608724,223.27,223.2,0.7]
[1760009701216,16.35608724,223.27,223.18,0.7]
[1760009701404,16.35608724,223.27,223.13,0.1]
[1760009701606,3.00401112,223.26,223.14,26.3]
[1760009701824,0.68,223.25,223.15,31.58]
[1760009702009,0.68,223.24,223.15,31.58]
[1760009702210,0.68,223.23,223.15,31.58]
[1760009702526,0.68,223.22,223.15,31.58]
[1760009702907,0.68,223.21,223.15,31.58]
[1760009703228,0.68,223.2,223.13,0.1]
[1760009704231,0.68,223.2,223.14,0.7]
[1760009704812,4.48048747,223.19,223.14,0.7]
[1760009705024,5.16048747,223.19,223.14,0.7]
[1760009705202,0.68,223.18,223.14,0.7]
[1760009705407,4.48048747,223.19,223.14,0.7]
[1760009705627,4.48048747,223.19,223.15,0.7]
[1760009706018,5.16048747,223.19,223.14,31.58]
[1760009706236,0.68,223.18,223.14,31.58]
[1760009706527,0.68,223.18,223.14,32.28]
[1760009706735,0.68,223.17,223.13,0.1]
[1760009706907,0.68,223.17,223.13,31.68]
[1760009707108,0.68,223.16,223.13,31.68]
[1760009707325,0.68,223.15,223.13,0.1]
[1760009707707,0.68,223.14,223.13,0.1]
[1760009708113,5.16149144,223.14,223.13,0.1]
[1760009709734,5.16149144,223.14,223.12,0.1]
[1760009715542,3.00387905,223.15,223.12,0.1]
[1760009715543,5.16169228,223.13,223.12,0.1]
[1760009730771,4.48169228,223.13,223.12,0.1]
[1760009730971,4.48169228,223.13,223.12,0.79]
[1760009731475,11.20287689,223.16,223.12,0.79]
[1760009731861,11.20287689,223.16,223.13,0.69]
[1760009732080,11.20287689,223.16,223.14,0.69]
[1760009732778,11.20287689,223.16,223.12,0.1]
[1760009732947,11.20287689,223.16,223.15,0.69]
[1760009733855,22.40243738,223.19,223.15,0.69]
[1760009734057,2.99822573,223.18,223.15,0.69]
[1760009735068,2.99822573,223.18,223.12,0.1]
[1760009735279,2.99822573,223.18,223.13,0.69]
[1760009735476,3.66822573,223.18,223.12,0.1]
[1760009735794,15.68311152,223.17,223.14,0.69]
[1760009736158,15.68311152,223.17,223.15,0.69]
[1760009737261,15.68311152,223.17,223.13,0.69]
[1760009737467,15.68311152,223.17,223.14,0.69]
[1760009737866,11.20222252,223.17,223.14,0.69]
[1760009738490,11.20222252,223.17,223.15,0.69]
[1760009739784,11.20222252,223.17,223.16,0.69]
[1760009741176,11.20222252,223.17,223.14,0.69]
[1760009741383,11.20222252,223.17,223.15,0.69]
[1760009742191,15.68311152,223.17,223.15,0.69]
[1760009742499,4.480889,223.17,223.16,0.69]
[1760009743592,19.46554756,223.23,223.16,0.69]
[1760009743974,8.26610514,223.23,223.16,0.69]
[1760009744277,38.77801197,223.29,223.17,4.480889]
[1760009744483,3.00883249,223.28,223.18,32.26]
[1760009744672,3.00883249,223.28,223.19,0.68]
[1760009745881,15.67608724,223.27,223.19,0.68]
[1760009746083,15.67608724,223.27,223.2,31.58]
[1760009746084,3.71883249,223.26,223.2,31.58]
[1760009746275,3.71883249,223.26,223.21,0.68]
[1760009746478,3.71883249,223.26,223.22,0.68]
[1760009746672,3.00883249,223.26,223.2,31.58]
[1760009746902,15.67608724,223.27,223.21,0.68]
[1760009747688,16.38608724,223.27,223.21,0.68]
[1760009748994,0.71,223.3,223.21,0.68]
[1760009749481,3.71537315,223.3,223.21,0.68]
[1760009751301,15.67468313,223.29,223.21,0.68]
[1760009751681,0.71,223.28,223.21,0.68]
[1760009753184,15.67608724,223.27,223.21,0.68]
[1760009754504,4.47888207,223.27,223.21,0.68]
[1760009754683,4.47867383,223.29,223.21,5.16003402]
[1760009754885,4.47867383,223.29,223.22,0.68]
[1760009755200,11.19581206,223.3,223.22,0.68]
[1760009755810,11.19581206,223.3,223.22,5.15988277]
[1760009755982,11.19581206,223.3,223.23,0.68]
[1760009756395,0.66,223.29,223.23,31.58]
[1760009756696,0.66,223.28,223.23,31.58]
[1760009756883,0.66,223.27,223.23,31.58]
[1760009757395,4.47908268,223.26,223.23,31.58]
[1760009757796,0.66,223.25,223.23,31.58]
[1760009757996,0.66,223.25,223.21,31.56]
[1760009758696,0.66,223.25,223.21,32.24]
[1760009758900,15.67678938,223.26,223.21,32.24]
[1760009759083,16.33678938,223.26,223.21,32.24]
[1760009759283,22.38967648,223.32,223.22,0.68]
[1760009759483,0.66,223.31,223.22,0.68]
[1760009760579,0.66,223.31,223.15,4.48112163]
[1760009760896,22.38967648,223.32,223.15,4.48112163]
[1760009760897,0.66,223.3,223.19,0.68]
[1760009761702,38.06708762,223.29,223.15,0.68]
[1760009761906,3.65548975,223.28,223.15,0.68]
[1760009763099,3.65548975,223.28,223.13,0.68]
[1760009763306,0.66,223.27,223.13,0.68]
[1760009763608,38.07220279,223.26,223.13,0.68]
[1760009763780,0.66,223.25,223.13,0.68]
[1760009763981,3.65658191,223.25,223.13,0.68]
[1760009765784,38.07561367,223.24,223.13,0.68]
[1760009766004,0.66,223.23,223.12,15.68]
[1760009766203,0.66,223.22,223.12,15.68]
[1760009766410,0.66,223.21,223.12,16.36]
[1760009766616,0.66,223.2,223.12,16.36]
[1760009766808,0.66,223.19,223.12,16.36]
[1760009767183,0.66,223.18,223.12,15.68]
[1760009767394,0.66,223.17,223.12,15.68]
[1760009767609,0.66,223.16,223.12,16.36]
[1760009767907,4.48129061,223.15,223.13,0.68]
[1760009769521,5.14129061,223.15,223.12,15.68]
[1760009769890,0.66,223.17,223.12,15.68]
[1760009770389,3.00015581,223.23,223.12,16.36]
[1760009770605,0.66,223.17,223.12,16.36]
[1760009770807,0.66,223.17,223.13,0.68]
[1760009771008,4.4810898,223.16,223.13,0.68]
[1760009773604,4.4810898,223.16,223.12,0.1]
[1760009773916,4.4810898,223.16,223.12,0.78]
[1760009774112,0.66,223.15,223.12,0.1]
[1760009774319,15.6838143,223.16,223.12,0.1]
[1760009774620,4.4810898,223.16,223.13,0.68]
[1760009774999,4.4810898,223.16,223.12,0.1]
[1760009775197,4.4810898,223.16,223.12,0.78]
[1760009775606,38.07902516,223.22,223.12,0.78]
[1760009775802,3.66338698,223.21,223.12,0.78]
[1760009776206,3.66338698,223.21,223.12,0.1]
[1760009777815,38.08243726,223.2,223.12,0.1]
[1760009778018,3.00338698,223.19,223.12,0.1]
[1760009778203,3.66338698,223.19,223.12,0.1]
[1760009779098,38.08584997,223.18,223.12,0.1]
[1760009779305,3.00338698,223.17,223.12,0.1]
[1760009779521,3.66338698,223.17,223.12,0.1]
[1760009779910,3.00338698,223.17,223.12,0.78]
[1760009780103,0.66,223.16,223.12,0.1]
[1760009780613,3.00338698,223.17,223.12,0.1]
[1760009780826,0.66,223.15,223.12,0.1]
[1760009781028,4.48149144,223.14,223.12,0.1]
[1760009781621,5.14149144,223.14,223.12,0.1]
[1760009784825,4.48149144,223.14,223.12,0.1]
[1760009785027,4.4810898,223.16,223.13,0.68]
[1760009785212,15.6838143,223.16,223.12,0.1]
[1760009785527,15.6838143,223.16,223.12,0.77]
[1760009785732,15.6838143,223.16,223.13,0.67]
[1760009785920,4.4810898,223.16,223.12,0.1]
[1760009786235,4.4810898,223.16,223.13,0.67]
[1760009787114,16.3738143,223.16,223.12,0.1]
[1760009787709,16.3738143,223.16,223.12,0.77]
[1760009788838,15.6838143,223.16,223.12,0.1]
[1760009789127,0.69,223.15,223.12,0.1]
[1760009789821,15.6838143,223.16,223.12,0.1]
[1760009790023,16.3738143,223.16,223.12,0.77]
[1760009790330,16.3738143,223.16,223.12,0.1]
[1760009790729,16.3738143,223.16,223.12,0.77]
[1760009791238,15.6838143,223.16,223.13,0.67]
[1760009791429,15.6838143,223.16,223.12,0.1]
[1760009791629,16.3738143,223.16,223.12,0.1]
[1760009792324,16.3738143,223.16,223.12,0.77]
[1760009793044,16.3738143,223.16,223.12,0.1]
[1760009793636,0.69,223.16,223.12,0.1]
[1760009793847,38.07902516,223.22,223.12,0.1]
[1760009793848,3.00588122,223.21,223.12,0.1]
[1760009794143,0.69,223.15,223.12,0.1]
[1760009794821,4.48149144,223.14,223.12,0.1]
[1760009795540,4.48149144,223.14,223.12,0.77]
[1760009796740,0.69,223.16,223.12,0.1]
[1760009797044,3.00689495,223.21,223.12,0.1]
[1760009797241,0.69,223.16,223.12,0.1]
[1760009797745,0.69,223.16,223.12,0.77]
[1760009797944,0.69,223.15,223.12,0.1]
[1760009798743,4.48149144,223.14,223.12,0.1]
[1760009799127,4.48149144,223.14,223.12,0.77]
[1760009799665,31.47586228,223.31,223.12,0.1]
[1760009799822,4.47988531,223.22,223.13,0.67]
[1760009800125,4.47988531,223.22,223.14,27.6]
[1760009800437,4.47988531,223.22,223.15,0.67]
[1760009800844,4.47928331,223.25,223.16,4.4810898]
[1760009801142,4.47928331,223.25,223.17,0.67]
[1760009801346,7.48792961,223.25,223.17,0.67]
[1760009801545,7.48792961,223.25,223.18,31.56]
[1760009801749,7.48792961,223.25,223.19,0.67]
[1760009802048,4.47928331,223.25,223.19,0.67]
[1760009802528,4.47928331,223.25,223.2,31.56]
[1760009802724,4.47928331,223.25,223.21,0.67]
[1760009803326,4.47928331,223.25,223.22,0.67]
[1760009804024,5.16928331,223.25,223.2,32.23]
[1760009804221,0.69,223.24,223.2,31.56]
[1760009804440,0.69,223.23,223.2,31.56]
[1760009804646,0.69,223.23,223.18,0.68]
[1760009804850,0.69,223.23,223.19,32.22]
[1760009805628,0.69,223.22,223.15,0.68]
[1760009805842,0.69,223.22,223.16,31.54]
[1760009806153,16.36749159,223.25,223.17,0.68]
[1760009806450,16.36749159,223.25,223.16,31.54]
[1760009806649,0.69,223.24,223.17,0.68]
[1760009807747,0.69,223.24,223.16,31.54]
[1760009807943,0.69,223.23,223.16,31.54]
[1760009808142,15.67749159,223.25,223.16,31.54]
[1760009808143,0.69,223.22,223.16,32.22]
[1760009808333,0.69,223.22,223.16,31.54]
[1760009808533,0.69,223.22,223.17,0.68]
[1760009808728,0.69,223.24,223.18,0.68]
[1760009808950,14.20814714,223.25,223.18,0.68]
[1760009809252,11.88820828,223.25,223.18,32.22]
[1760009809650,4.47908268,223.26,223.19,0.68]
[1760009810236,5.16908268,223.26,223.19,0.68]
[1760009811856,16.36678938,223.26,223.19,0.68]
[1760009813038,16.36678938,223.26,223.2,31.54]
[1760009813237,0.69,223.25,223.2,31.54]
[1760009813461,0.69,223.24,223.2,31.54]
[1760009813839,0.69,223.23,223.15,0.68]
[1760009814037,0.69,223.23,223.17,31.54]
[1760009814237,0.69,223.22,223.17,31.54]
[1760009814449,0.69,223.22,223.17,32.22]
[1760009815033,3.00710492,223.25,223.17,32.22]
[1760009815237,0.69,223.22,223.17,32.22]
[1760009816649,0.7,223.21,223.17,31.54]
[1760009816955,0.7,223.2,223.17,31.54]
[1760009817541,11.1999282,223.22,223.17,32.25]
[1760009817849,11.8999282,223.22,223.17,32.25]
[1760009818237,4.48008601,223.21,223.17,32.25]
[1760009819159,4.48008601,223.21,223.18,0.71]
[1760009820044,4.48008601,223.21,223.19,31.54]
[1760009820249,0.7,223.2,223.19,31.54]
[1760009821058,0.7,223.2,223.15,0.71]
[1760009821263,0.7,223.2,223.18,31.54]
[1760009821440,0.7,223.2,223.18,31.52]
[1760009821642,15.68030105,223.21,223.12,10.97647521]
[1760009821950,0.7,223.19,223.13,32.23]
[1760009822150,0.7,223.19,223.14,0.71]
[1760009822357,0.7,223.18,223.14,0.71]
[1760009823358,0.7,223.18,223.13,32.23]
[1760009823572,0.7,223.18,223.14,0.71]
[1760009824547,0.7,223.22,223.14,0.71]
[1760009826369,15.68030105,223.21,223.14,0.71]
[1760009827668,4.47986498,223.23,223.15,10.87647521]
[1760009827975,4.47986498,223.23,223.16,0.71]
[1760009828274,5.17935311,223.25,223.16,5.19107656]
[1760009828476,5.17935311,223.25,223.17,0.71]
[1760009828669,16.37756139,223.25,223.18,31.52]
[1760009828866,0.7,223.24,223.18,31.52]
[1760009829271,3.71019437,223.24,223.18,32.23]
[1760009830073,0.7,223.23,223.18,32.23]
[1760009830263,0.7,223.22,223.18,32.23]
[1760009830460,4.48008601,223.21,223.18,32.23]
[1760009831155,4.48008601,223.21,223.19,31.52]
[1760009831357,4.48008601,223.21,223.19,32.23]
[1760009831977,4.48008601,223.21,223.2,0.71]
[1760009832151,4.47971198,223.23,223.2,0.71]
[1760009832771,4.47971198,223.23,223.19,31.52]
[1760009832969,5.17971198,223.23,223.19,32.23]
[1760009833368,5.17971198,223.23,223.19,31.52]
[1760009833568,0.7,223.22,223.19,31.52]
[1760009834083,0.7,223.21,223.12,0.81]
[1760009834250,0.7,223.21,223.13,31.52]
[1760009834455,0.7,223.21,223.14,0.71]
[1760009835380,15.68100357,223.2,223.13,31.52]
[1760009835680,3.71269836,223.19,223.14,31.52]
[1760009835864,0.7,223.18,223.14,31.52]
[1760009836053,0.7,223.17,223.14,31.52]
[1760009836455,0.7,223.18,223.14,31.52]
[1760009837373,22.39748085,223.24,223.15,0.71]
[1760009837374,0.7,223.21,223.15,0.71]
[1760009837678,0.7,223.21,223.14,31.52]
[1760009837974,3.71308912,223.2,223.12,0.1]
[1760009838168,3.01308912,223.19,223.13,31.52]
[1760009838477,0.7,223.19,223.13,31.52]
[1760009838767,0.7,223.19,223.13,32.23]
[1760009839372,4.48048747,223.19,223.14,0.71]
[1760009839586,5.18048747,223.19,223.14,0.71]
[1760009839765,16.38170616,223.19,223.14,0.71]
[1760009840080,16.38170616,223.19,223.15,0.71]
[1760009840382,16.38170616,223.19,223.13,31.52]
[1760009840558,16.38170616,223.19,223.13,32.23]
[1760009841285,3.01358449,223.18,223.13,32.23]
[1760009841581,4.480889,223.17,223.14,0.71]
[1760009842158,4.480889,223.17,223.13,31.52]
[1760009842377,4.480889,223.17,223.14,0.71]
[1760009843169,5.180889,223.17,223.13,31.52]
[1760009843477,5.180889,223.17,223.13,32.23]
[1760009844080,16.38311152,223.17,223.13,32.23]
[1760009845180,15.68311152,223.17,223.14,0.71]
[1760009846159,11.20222252,223.17,223.14,0.71]
[1760009847777,11.20222252,223.17,223.14,31.52]
[1760009847979,0.65,223.16,223.14,31.52]
[1760009848173,4.48129061,223.15,223.14,31.52]
[1760009849558,11.20222252,223.17,223.14,31.52]
[1760009849559,15.68311152,223.17,223.14,31.52]
[1760009850360,0.65,223.16,223.14,31.52]
[1760009850687,15.68311152,223.17,223.14,31.52]
[1760009852080,15.68311152,223.17,223.14,32.19]
[1760009853171,0.65,223.16,223.14,31.52]
[1760009854385,5.13129061,223.15,223.14,31.52]
[1760009854684,4.48129061,223.15,223.14,31.52]
[1760009856263,4.4810898,223.16,223.14,31.52]
[1760009856463,4.4810898,223.16,223.14,32.19]
[1760009856872,4.4810898,223.16,223.14,31.52]
[1760009857285,15.68311152,223.17,223.14,32.19]
[1760009857589,4.480889,223.17,223.15,0.67]
[1760009857784,4.480889,223.17,223.16,0.67]
[1760009857962,4.480889,223.17,223.15,0.67]
[1760009860886,11.20183594,223.18,223.14,31.52]
[1760009861071,11.20183594,223.18,223.15,0.67]
[1760009861384,14.21837581,223.18,223.15,0.67]
[1760009862266,18.69906404,223.18,223.14,31.52]
[1760009862473,15.68252417,223.18,223.15,0.67]
[1760009863490,4.48068823,223.18,223.15,0.67]
[1760009863684,0.65,223.2,223.16,0.67]
[1760009863685,7.49765267,223.2,223.16,0.67]
[1760009863881,4.48047797,223.2,223.17,0.67]
[1760009864190,4.48047797,223.2,223.18,0.72]
[1760009864384,7.49765267,223.2,223.16,0.72]
[1760009864585,4.48047797,223.2,223.17,0.72]
[1760009864791,18.69836951,223.2,223.17,0.72]
[1760009865092,15.68119481,223.2,223.17,0.72]
[1760009865290,16.39119481,223.2,223.14,31.52]
[1760009865496,16.39119481,223.2,223.15,0.72]
[1760009865674,16.39119481,223.2,223.16,0.72]
[1760009865874,16.39119481,223.2,223.14,31.52]
[1760009866101,16.39119481,223.2,223.15,0.72]
[1760009866102,4.48047797,223.2,223.15,0.72]
[1760009866592,7.49759103,223.2,223.15,0.72]
[1760009866787,4.48047797,223.2,223.15,0.72]
[1760009866994,3.01711306,223.21,223.15,0.72]
[1760009867222,7.49702689,223.22,223.15,0.72]
[1760009867385,4.47991383,223.22,223.15,0.72]
[1760009868093,7.49702689,223.22,223.16,4.4810898]
[1760009868397,4.47965803,223.24,223.17,0.72]
[1760009868585,7.49677109,223.24,223.17,0.72]
[1760009869278,18.69548099,223.24,223.17,0.72]
[1760009869479,15.67836793,223.24,223.17,0.72]
[1760009870076,16.38836793,223.24,223.17,0.72]
[1760009870277,16.38836793,223.24,223.17,14.17442314]
[1760009870470,16.38836793,223.24,223.18,0.72]
[1760009870679,16.38836793,223.24,223.19,31.5]
[1760009870876,15.67538516,223.28,223.2,0.72]
[1760009871089,3.01537288,223.27,223.2,0.72]
[1760009871280,3.72537288,223.26,223.2,0.72]
[1760009871476,3.01537288,223.25,223.2,0.72]
[1760009871909,4.47968463,223.23,223.2,0.72]
[1760009872711,0.71,223.22,223.14,15.35777544]
[1760009872894,0.71,223.21,223.16,10.87647521]
[1760009873218,0.71,223.21,223.17,0.72]
[1760009873605,16.3888962,223.23,223.18,0.72]
[1760009873803,0.71,223.22,223.18,0.72]
[1760009874005,0.71,223.22,223.19,31.5]
[1760009874392,0.71,223.22,223.18,0.72]
[1760009874728,0.71,223.22,223.19,31.5]
[1760009875008,0.71,223.21,223.15,0.72]
[1760009875306,0.71,223.21,223.19,31.5]
[1760009875885,4.48008601,223.21,223.19,31.5]
[1760009876099,5.17008601,223.21,223.19,31.5]
[1760009877094,5.17008601,223.21,223.17,0.67]
[1760009877395,5.17008601,223.21,223.18,31.5]
[1760009880011,5.17008601,223.21,223.18,32.17]
[1760009880198,4.48008601,223.21,223.18,32.17]
[1760009880706,4.48008601,223.21,223.19,0.67]
[1760009881013,4.47970821,223.23,223.19,0.67]
[1760009881398,5.16970821,223.23,223.19,0.67]
[1760009881594,5.16970821,223.23,223.15,14.12502657]
[1760009881595,0.69,223.22,223.15,14.12502657]
[1760009881796,0.69,223.22,223.18,31.48]
[1760009882008,0.69,223.21,223.18,31.48]
[1760009882609,4.48028673,223.2,223.18,31.48]
[1760009883609,5.17028673,223.2,223.18,31.48]
[1760009884411,4.48028673,223.2,223.18,31.48]
[1760009884613,4.48028673,223.2,223.18,32.15]
[1760009884917,4.48028673,223.2,223.18,31.48]
[1760009885100,5.17028673,223.2,223.18,31.48]
[1760009885631,0.69,223.19,223.14,11.20033619]
[1760009885801,0.69,223.18,223.15,31.48]
[1760009886425,4.480889,223.17,223.15,32.15]
[1760009887102,4.480889,223.17,223.15,31.48]
[1760009888448,0.69,223.16,223.15,31.48]
[1760009888620,5.1710898,223.16,223.15,31.48]
[1760009888953,5.1710898,223.16,223.14,31.48]
[1760009889527,4.4810898,223.16,223.14,31.48]
[1760009889749,4.4810898,223.16,223.14,32.15]
[1760009890634,15.68257298,223.18,223.14,32.15]
[1760009890937,4.48068823,223.18,223.15,0.67]
[1760009891439,4.48068823,223.18,223.16,0.67]
[1760009892134,4.48008601,223.21,223.17,0.67]
[1760009892342,18.69482627,223.21,223.18,32.15]
[1760009892632,15.68030105,223.21,223.18,32.15]
[1760009893141,11.20021504,223.21,223.18,32.15]
[1760009893517,14.21488739,223.21,223.18,32.15]
[1760009895942,18.6949734,223.21,223.18,32.15]
[1760009896145,15.68030105,223.21,223.18,32.15]
[1760009896320,15.68030105,223.21,223.18,31.48]
[1760009896515,4.48008601,223.21,223.19,0.67]
[1760009897826,7.49470502,223.23,223.19,0.67]
[1760009898030,4.47986871,223.23,223.19,0.67]
[1760009898428,7.49470502,223.23,223.19,0.67]
[1760009898631,4.47986871,223.23,223.19,0.67]
[1760009898829,7.49470502,223.23,223.19,0.67]
[1760009899052,4.47986871,223.23,223.19,0.67]
[1760009899233,4.47908268,223.26,223.19,0.67]
[1760009899422,3.01458302,223.3,223.2,10.87647521]
[1760009899627,3.01458302,223.29,223.21,0.67]